bitfinex/quotes_SOLUSD_20260113
["timestamp","ask_amount","ask_price","bid_price","bid_amount"]
[1768311964624,0.68620182,142.61,142.58,8.77057228]
[1768311965435,13.49515418,142.63,142.6,8.77057228]
[1768311965628,13.49515418,142.63,142.59,7.0129836]
[1768311965629,0.69515418,142.65,142.61,8.77057228]
[1768311965834,12.8,142.64,142.61,8.77057228]
[1768311966017,13.49515418,142.64,142.61,8.77057228]
[1768311968039,13.49515418,142.64,142.61,15.78266831]
[1768311968246,0.69515418,142.64,142.61,7.01209603]
[1768311968415,0.69515418,142.64,142.61,15.78266831]
[1768311968951,0.69515418,142.66,142.62,8.77057228]
[1768311969242,20.50492274,142.66,142.63,8.77057228]
[1768311969845,0.69515418,142.68,142.65,8.77057228]
[1768311970050,12.8,142.69,142.67,8.77057228]
[1768311970224,0.69515418,142.71,142.67,8.77057228]
[1768311970547,0.69515418,142.68,142.61,18.2057874]
[1768311970723,0.69515418,142.67,142.61,18.2057874]
[1768311970918,0.69515418,142.67,142.63,8.77057228]
[1768311971169,7.70456445,142.67,142.63,8.77057228]
[1768311971551,22.26572646,142.69,142.64,8.77057228]
[1768311971841,13.49515418,142.69,142.65,8.77057228]
[1768311972628,20.50348601,142.69,142.65,8.77057228]
[1768311972827,20.50348601,142.69,142.64,7.68596464]
[1768311973146,20.50348601,142.69,142.65,8.77057228]
[1768311974645,20.50348601,142.69,142.64,7.68596464]
[1768311974845,20.50348601,142.69,142.65,8.77057228]
[1768311975063,20.50348601,142.69,142.64,7.68596464]
[1768311975264,20.50348601,142.69,142.65,8.77057228]
[1768311976061,0.65818306,142.68,142.65,8.77057228]
[1768311976276,0.65818306,142.68,142.64,9.4463451]
[1768311976861,7.00918202,142.67,142.64,9.4463451]
[1768311977864,7.66736508,142.67,142.62,7.69024691]
[1768311978035,0.65818306,142.66,142.63,8.77057228]
[1768311978236,0.65818306,142.66,142.6,6.6801107]
[1768311978468,8.77057228,142.64,142.6,0.67863154]
[1768311978766,9.42875534,142.63,142.58,0.67863154]
[1768311978939,7.01065619,142.64,142.6,0.67863154]
[1768311979139,7.01065619,142.64,142.6,9.44920382]
[1768311979367,19.79065619,142.64,142.6,0.67863154]
[1768311979570,12.78,142.66,142.63,8.77057228]
[1768311979875,12.78,142.66,142.63,0.67863154]
[1768311979876,19.78987081,142.66,142.63,0.67863154]
[1768311980058,20.44805387,142.66,142.61,0.67863154]
[1768311980245,20.44805387,142.66,142.62,8.77057228]
[1768311980434,46.74280952,142.66,142.61,9.44920382]
[1768311980638,37.97223724,142.66,142.61,9.44920382]
[1768311980834,46.74280952,142.66,142.61,9.44920382]
[1768311981436,46.74280952,142.66,142.61,0.67863154]
[1768311981637,46.74280952,142.66,142.61,9.44920382]
[1768311981839,46.74280952,142.66,142.61,0.67863154]
[1768311982243,7.01065619,142.64,142.61,0.67863154]
[1768311982640,7.01065619,142.64,142.61,9.44920382]
[1768311983455,7.01065619,142.64,142.61,0.67863154]
[1768311984559,16.43941153,142.64,142.59,7.69156705]
[1768311984760,16.43941153,142.64,142.59,16.46213933]
[1768311985142,9.42875534,142.63,142.58,9.44920382]
[1768311985343,12.78,142.62,142.58,9.44920382]
[1768311986175,7.66883925,142.64,142.6,9.44920382]
[1768311986474,12.78,142.63,142.6,0.67863154]
[1768311986649,19.79118126,142.63,142.6,0.67863154]
[1768311986844,19.79118126,142.63,142.6,9.44920382]
[1768311987354,19.79118126,142.63,142.6,0.67863154]
[1768311988242,19.79118126,142.63,142.59,8.77057228]
[1768311988761,46.74780591,142.63,142.58,9.44920382]
[1768311988970,0.65818306,142.62,142.58,9.44920382]
[1768311989446,2.67338984,142.62,142.58,0.67863154]
[1768311989846,7.01213098,142.61,142.58,0.67863154]
[1768311990052,6.98213099,142.61,142.58,0.67863154]
[1768311991055,6.98213099,142.61,142.58,2.69383832]
[1768311991262,6.98213099,142.61,142.58,0.67863154]
[1768311991655,6.98213099,142.61,142.58,2.69383832]
[1768311991849,6.98213099,142.61,142.56,2.01520678]
[1768311991850,0.65818306,142.6,142.56,0.67863154]
[1768311992055,13.40818307,142.6,142.55,2.01520678]
[1768311992256,15.42338985,142.6,142.55,2.69383832]
[1768311992553,15.39338986,142.6,142.55,0.67863154]
[1768311993142,15.39338986,142.6,142.55,2.69383832]
[1768311993458,14.79520678,142.6,142.55,2.69383832]
[1768311993659,12.78,142.6,142.55,9.70882535]
[1768311993858,19.79282311,142.6,142.55,9.70882535]
[1768311994039,19.79282311,142.6,142.56,2.01520678]
[1768311994241,7.0118363,142.62,142.58,0.67863154]
[1768311994448,35.05036026,142.66,142.61,2.01520678]
[1768311994449,0.65818306,142.64,142.61,2.01520678]
[1768311995070,12.78,142.65,142.62,2.01520678]
[1768311995256,0.71289199,142.66,142.61,2.71312653]
[1768311995547,13.51289199,142.66,142.62,2.01520678]
[1768311995762,7.72198241,142.68,142.63,9.72427425]
[1768311995966,20.52198241,142.68,142.63,9.72427425]
[1768311996345,0.71289199,142.67,142.63,9.0263545]
[1768311996766,0.71289199,142.67,142.64,2.01520678]
[1768311997568,0.71289199,142.71,142.65,7.70808448]
[1768311997765,0.71289199,142.7,142.66,2.01520678]
[1768311998550,0.71289199,142.7,142.67,2.01520678]
[1768311999263,0.71289199,142.7,142.67,9.02433057]
[1768311999455,0.71289199,142.7,142.68,2.01520678]
[1768312000049,7.00679926,142.72,142.69,2.01520678]
[1768312000050,0.71289199,142.72,142.69,2.01520678]
[1768312000775,0.71289199,142.72,142.67,7.70704354]
[1768312000946,0.71289199,142.71,142.69,2.01520678]
[1768312002561,0.71289199,142.73,142.69,7.00814393]
[1768312002768,0.71289199,142.73,142.7,2.01520678]
[1768312003681,0.71289199,142.73,142.71,2.01520678]
[1768312003968,0.71289199,142.73,142.67,2.01520678]
[1768312003969,13.49289199,142.72,142.67,2.01520678]
[1768312004270,13.49289199,142.72,142.68,2.01520678]
[1768312004571,0.71289199,142.7,142.66,2.71312653]
[1768312004946,12.78,142.7,142.69,2.01520678]
[1768312005150,12.78,142.7,142.67,7.00885443]
[1768312005346,12.78,142.7,142.69,5.38930289]
[1768312005668,12.78,142.71,142.69,5.38930289]
[1768312006275,12.78,142.71,142.67,7.00885443]
[1768312006276,13.49289199,142.71,142.68,5.38930289]
[1768312006768,20.5001818,142.71,142.68,5.38930289]
[1768312007273,7.7201818,142.71,142.68,5.38930289]
[1768312007455,20.5001818,142.71,142.68,5.38930289]
[1768312008490,12.78,142.71,142.69,5.38930289]
[1768312008656,12.78,142.71,142.7,5.38930289]
[1768312009057,12.78,142.71,142.69,5.38930289]
[1768312009255,13.49289199,142.71,142.68,5.38930289]
[1768312009476,13.49289199,142.71,142.65,7.70789426]
[1768312009477,0.71289199,142.7,142.65,7.70789426]
[1768312009673,0.71289199,142.7,142.67,5.38930289]
[1768312010788,7.72075582,142.7,142.67,5.38930289]
[1768312011478,5.38930289,142.72,142.69,5.38930289]
[1768312011479,13.49289199,142.72,142.69,5.38930289]
[1768312011679,20.4997896,142.72,142.7,5.38930289]
[1768312011863,0.71289199,142.71,142.67,7.70699185]
[1768312012057,0.71289199,142.71,142.69,5.38930289]
[1768312012676,7.72015515,142.71,142.68,5.38930289]
[1768312013290,0.71289199,142.7,142.68,5.38930289]
[1768312013587,7.72015515,142.71,142.68,5.38930289]
[1768312013783,7.72015515,142.71,142.67,5.38930289]
[1768312013983,7.72015515,142.71,142.66,6.08722264]
[1768312013984,0.71289199,142.7,142.66,6.08722264]
[1768312015899,7.72077785,142.7,142.66,5.38930289]
[1768312016073,0.71289199,142.69,142.65,7.00999814]
[1768312016276,0.71289199,142.69,142.66,5.38930289]
[1768312018592,7.72114586,142.69,142.66,5.38930289]
[1768312018786,7.72114586,142.69,142.65,13.09738087]
[1768312019886,20.50114586,142.69,142.65,13.09738087]
[1768312020790,12.78,142.69,142.66,6.08722264]
[1768312020991,12.78,142.69,142.67,5.38930289]
[1768312021172,0.71289199,142.7,142.67,5.38930289]
[1768312021495,13.49289199,142.7,142.67,5.38930289]
[1768312022168,12.78,142.7,142.67,6.08722264]
[1768312022468,20.50018048,142.71,142.68,5.38930289]
[1768312022673,19.78694548,142.72,142.68,6.08722264]
[1768312022874,20.49983747,142.72,142.68,6.08722264]
[1768312023495,7.71983747,142.72,142.68,13.09578542]
[1768312023679,20.49983747,142.72,142.68,13.09578542]
[1768312024067,0.71289199,142.71,142.68,5.38930289]
[1768312024298,0.71289199,142.71,142.65,0.69791975]
[1768312024599,0.71289199,142.71,142.67,5.38930289]
[1768312024974,0.7101418,142.7,142.65,7.71204024]
[1768312025189,0.7101418,142.7,142.66,5.38930289]
[1768312025384,0.7101418,142.68,142.64,5.38930289]
[1768312025695,0.7101418,142.68,142.66,5.38930289]
[1768312026067,0.7101418,142.68,142.64,7.71275003]
[1768312026068,7.71883874,142.68,142.65,5.38930289]
[1768312026267,20.49883874,142.68,142.65,5.38930289]
[1768312026501,0.7101418,142.67,142.63,7.01093585]
[1768312026676,0.7101418,142.67,142.64,12.39990569]
[1768312027301,0.7101418,142.67,142.64,9.02400982]
[1768312027506,0.7101418,142.67,142.64,7.0106028]
[1768312028726,0.7101418,142.67,142.64,9.02400982]
[1768312029718,0.7101418,142.67,142.64,7.0106028]
[1768312030215,0.7101418,142.67,142.64,9.02400982]
[1768312032916,2.72354882,142.65,142.61,0.70210378]
[1768312033211,0.7101418,142.64,142.61,7.01207264]
[1768312033513,0.68014181,142.64,142.61,9.02547966]
[1768312033702,0.65014182,142.64,142.61,9.02547966]
[1768312034121,0.65014182,142.64,142.61,7.01207264]
[1768312034416,9.67423331,142.64,142.6,7.71449461]
[1768312035095,2.01340702,142.63,142.58,9.72871577]
[1768312035300,2.01340702,142.63,142.58,2.7155108]
[1768312035499,14.79340702,142.62,142.57,9.72961103]
[1768312035708,15.48944183,142.62,142.57,9.72961103]
[1768312035914,15.48944183,142.62,142.55,17.53695308]
[1768312035915,2.70944183,142.61,142.56,9.02786036]
[1768312036118,0.69603481,142.6,142.56,9.02786036]
[1768312036401,13.47603481,142.62,142.58,2.71582314]
[1768312036600,0.69603481,142.61,142.57,2.01340702]
[1768312036823,0.69603481,142.6,142.56,9.73027648]
[1768312037617,0.69603481,142.6,142.56,7.71686946]
[1768312038021,0.69603481,142.6,142.56,9.73027648]
[1768312038210,12.78,142.61,142.58,2.71582314]
[1768312038417,12.78,142.61,142.58,2.01340702]
[1768312039005,12.78,142.61,142.59,2.01340702]
[1768312039723,12.78,142.61,142.58,9.02687119]
[1768312039917,20.48843212,142.61,142.57,2.71582314]
[1768312040124,0.69603481,142.6,142.56,9.02768264]
[1768312041025,0.69603481,142.59,142.56,2.01340702]
[1768312041226,13.44603482,142.58,142.54,2.71582314]
[1768312041429,13.41603483,142.58,142.54,2.71582314]
[1768312041629,20.39973077,142.58,142.54,2.01340702]
[1768312041922,2.01340702,142.57,142.52,2.71582314]
[1768312042122,37.32771192,142.58,142.52,9.73204886]
[1768312042427,2.01340702,142.57,142.53,2.01340702]
[1768312042609,37.32771192,142.58,142.53,9.73183026]
[1768312042610,21.80710295,142.58,142.53,9.73183026]
[1768312043719,22.50313776,142.58,142.53,9.73183026]
[1768312043920,20.48973074,142.58,142.53,9.73183026]
[1768312044127,0.69603481,142.59,142.56,2.01340702]
[1768312044313,0.69603481,142.59,142.55,2.71582314]
[1768312044625,0.66603482,142.59,142.55,2.71582314]
[1768312047126,0.66603482,142.59,142.55,9.73077335]
[1768312047910,2.70944183,142.57,142.52,0.70241612]
[1768312048114,2.01340702,142.56,142.51,2.01340702]
[1768312048416,2.01340702,142.55,142.5,2.71582314]
[1768312048930,2.01340702,142.56,142.51,9.03016704]
[1768312049316,10.16658177,142.56,142.51,10.16852292]
[1768312050210,3.84779771,142.55,142.51,7.01676002]
[1768312050618,0.69603481,142.55,142.51,10.16852292]
[1768312050925,17.53466451,142.58,142.54,0.70241612]
[1768312050926,10.86144413,142.58,142.54,0.70241612]
[1768312051107,12.8,142.57,142.54,0.70241612]
[1768312051615,16.64779771,142.57,142.53,3.1517629]
[1768312051814,16.64779771,142.57,142.52,3.85417902]
[1768312052013,0.69603481,142.56,142.52,0.70241612]
[1768312052215,0.69603481,142.56,142.52,3.85417902]
[1768312052615,15.9517629,142.57,142.53,0.70241612]
[1768312052616,22.96596164,142.57,142.53,0.70241612]
[1768312052815,23.66199645,142.57,142.53,10.87008008]
[1768312053231,20.51023355,142.57,142.53,10.87008008]
[1768312053810,23.66199645,142.57,142.53,7.71831718]
[1768312054210,0.69603481,142.56,142.53,7.01590106]
[1768312054412,0.66603482,142.56,142.52,10.87051522]
[1768312055740,0.66603482,142.56,142.52,7.71875232]
[1768312056032,0.66603482,142.56,142.52,10.87051522]
[1768312056432,0.66603482,142.56,142.52,7.71875232]
[1768312056624,0.72138809,142.55,142.52,7.0163362]
[1768312056826,0.72138809,142.55,142.51,10.16861974]
[1768312057131,0.72138809,142.55,142.52,7.01651242]
[1768312057634,0.72138809,142.55,142.51,10.16865932]
[1768312057812,0.72138809,142.54,142.5,3.81851049]
[1768312058121,3.87315099,142.53,142.49,7.21794697]
[1768312058629,3.87315099,142.52,142.49,0.2]
[1768312058821,12.8,142.51,142.49,0.2]
[1768312060034,15.9517629,142.51,142.49,0.2]
[1768312060334,12.8,142.51,142.49,0.2]
[1768312060812,12.8,142.51,142.49,7.88475027]
[1768312061015,12.77000001,142.51,142.49,7.88475027]
[1768312061517,13.52138809,142.53,142.49,11.03651317]
[1768312061928,16.67315099,142.54,142.5,3.81851049]
[1768312062132,0.72138809,142.53,142.49,11.03651317]
[1768312062437,0.72138809,142.53,142.5,3.1517629]
[1768312064713,10.88936752,142.53,142.49,7.88475027]
[1768312065035,3.87315099,142.53,142.49,11.03651317]
[1768312065350,10.88927929,142.53,142.49,11.03651317]
[1768312066259,0.72138809,142.5,142.49,0.2]
[1768312066413,0.72138809,142.5,142.48,0.2]
[1768312066414,0.72138809,142.49,142.46,0.2]
[1768312066620,3.1517629,142.47,142.46,0.2]
[1768312066822,3.73083531,142.48,142.46,0.2]
[1768312067844,3.70083532,142.48,142.46,0.2]
[1768312068015,0.54907242,142.48,142.46,0.2]
[1768312068216,12.8,142.53,142.48,0.66674759]
[1768312068420,15.9517629,142.53,142.49,3.1517629]
[1768312068822,15.9517629,142.53,142.48,0.66674759]
[1768312069022,15.9517629,142.53,142.48,3.81851049]
[1768312069648,22.96830859,142.53,142.48,10.8370394]
[1768312069831,3.70113532,142.52,142.48,0.66674759]
[1768312070023,3.70113532,142.52,142.47,10.17057218]
[1768312070223,3.70113532,142.52,142.47,7.68555687]
[1768312070429,3.70113532,142.52,142.48,7.01851332]
[1768312070635,3.70113532,142.52,142.48,10.83702381]
[1768312070945,12.8,142.53,142.51,3.1517629]
[1768312071144,7.01529304,142.55,142.51,3.81851049]
[1768312071353,10.71642836,142.55,142.51,0.66674759]
[1768312071526,12.8,142.54,142.5,10.16918438]
[1768312071846,12.8,142.54,142.5,10.83593197]
[1768312072223,7.73586292,142.57,142.53,3.1517629]
[1768312072423,20.53586292,142.57,142.54,3.1517629]
[1768312072625,12.8,142.57,142.54,3.81851049]
[1768312073125,10.88656388,142.59,142.55,3.81851049]
[1768312073126,3.1517629,142.59,142.55,3.81851049]
[1768312073326,42.05883466,142.66,142.58,3.1517629]
[1768312073545,10.16401832,142.61,142.57,3.1517629]
[1768312073748,23.68540641,142.61,142.57,3.1517629]
[1768312073938,20.53364351,142.61,142.57,3.1517629]
[1768312074255,23.68540641,142.61,142.57,3.1517629]
[1768312075946,20.53364351,142.61,142.57,3.1517629]
[1768312076326,20.53364351,142.61,142.56,7.68104958]
[1768312076546,20.53364351,142.61,142.57,3.1517629]
[1768312076750,20.53364351,142.61,142.56,7.68104958]
[1768312076960,20.53364351,142.61,142.57,3.1517629]
[1768312077166,20.53364351,142.61,142.58,3.1517629]
[1768312077532,0.72138809,142.63,142.6,3.1517629]
[1768312077870,12.8,142.63,142.61,3.1517629]
[1768312078070,13.34937242,142.64,142.61,3.1517629]
[1768312078237,13.34937242,142.64,142.59,0.66674759]
[1768312078440,13.34937242,142.64,142.61,3.1517629]
[1768312078641,13.34937242,142.64,142.62,3.1517629]
[1768312078957,20.36009349,142.64,142.61,3.1517629]
[1768312079444,20.36009349,142.64,142.61,8.76724958]
[1768312080345,13.34937242,142.64,142.62,8.76724958]
[1768312080550,7.56010525,142.64,142.62,8.76724958]
[1768312080742,7.56010525,142.64,142.6,0.66674759]
[1768312080945,20.36010525,142.64,142.62,8.76724958]
[1768312081151,20.36010525,142.64,142.6,0.66674759]
[1768312081462,20.36010525,142.64,142.61,8.76724958]
[1768312081659,20.36010525,142.64,142.6,0.66674759]
[1768312081961,29.12735483,142.64,142.6,9.43399717]
[1768312082537,20.36010525,142.64,142.6,9.43399717]
[1768312082934,29.12735483,142.64,142.6,9.43399717]
[1768312083363,46.65399532,142.64,142.6,9.43399717]
[1768312083839,46.65399532,142.64,142.6,0.66674759]
[1768312084041,8.76724958,142.63,142.6,0.66674759]
[1768312085058,7.01163932,142.62,142.59,8.76724958]
[1768312085255,7.01163932,142.62,142.59,9.45343343]
[1768312087960,7.73099951,142.63,142.6,8.76724958]
[1768312088141,7.01133158,142.63,142.6,9.45343343]
[1768312089946,7.01133158,142.63,142.61,9.45343343]
[1768312090153,7.01133158,142.63,142.61,9.39343343]
[1768312091371,7.01133158,142.63,142.61,0.62618385]
[1768312091948,12.8,142.64,142.61,0.62618385]
[1768312093574,19.8110493,142.64,142.61,0.62618385]
[1768312093790,20.41856757,142.64,142.61,0.62618385]
[1768312094568,20.41856757,142.64,142.58,0.68618385]
[1768312094569,0.72150354,142.63,142.58,0.68618385]
[1768312094976,9.48875312,142.63,142.58,9.45343343]
[1768312095560,7.01163932,142.62,142.58,9.45343343]
[1768312096264,9.45920122,142.61,142.57,9.46314303]
[1768312096469,22.25920122,142.61,142.57,9.46314303]
[1768312096673,13.49195164,142.61,142.57,9.46314303]
[1768312097069,22.25920122,142.61,142.56,8.76724958]
[1768312097374,22.25920122,142.61,142.54,7.01536822]
[1768312097375,0.69195164,142.59,142.55,8.76724958]
[1768312097682,7.01409833,142.57,142.53,8.76724958]
[1768312098055,8.76724958,142.55,142.5,8.76724958]
[1768312098273,8.76724958,142.55,142.48,12.78]
[1768312098458,8.76724958,142.55,142.48,7.0184011]
[1768312098459,8.76724958,142.54,142.48,7.0184011]
[1768312098661,8.76724958,142.53,142.48,8.76724958]
[1768312099272,3.15267315,142.53,142.49,0.69589345]
[1768312099868,7.0162043,142.53,142.5,0.69589345]
[1768312100167,19.8162043,142.53,142.5,0.69589345]
[1768312100568,22.96887745,142.53,142.5,0.69589345]
[1768312100765,22.96887745,142.53,142.48,3.8485666]
[1768312100969,3.84462479,142.51,142.47,0.69589345]
[1768312101783,0.69195164,142.51,142.47,0.69589345]
[1768312101984,10.86171637,142.51,142.47,0.69589345]
[1768312102581,7.70904322,142.51,142.47,3.8485666]
[1768312102985,10.86171637,142.51,142.47,0.69589345]
[1768312103185,7.70904322,142.51,142.47,3.8485666]
[1768312103692,10.86171637,142.51,142.46,4.0485666]
[1768312103986,10.86171637,142.51,142.46,11.06804746]
[1768312104188,20.50904322,142.51,142.47,3.15267315]
[1768312104662,13.49195164,142.51,142.47,3.8485666]
[1768312104862,20.50908048,142.51,142.47,3.8485666]
[1768312105889,20.47908049,142.51,142.47,3.8485666]
[1768312106365,13.46195165,142.51,142.47,10.86749424]
[1768312107680,20.47913546,142.51,142.47,10.86749424]
[1768312109186,7.70803332,142.53,142.48,0.69589345]
[1768312109360,12.8,142.52,142.49,0.69589345]
[1768312109870,7.70803332,142.53,142.49,2.71365295]
[1768312110062,2.70971114,142.55,142.51,0.69589345]
[1768312110287,13.49195164,142.57,142.53,2.71365295]
[1768312110590,15.50971114,142.57,142.53,0.69589345]
[1768312111291,22.52395018,142.57,142.53,0.69589345]
[1768312112567,20.50619068,142.57,142.53,0.69589345]
[1768312112769,0.69195164,142.59,142.55,2.71365295]
[1768312112982,13.49195164,142.59,142.55,2.71365295]
[1768312113490,20.50519872,142.59,142.55,2.71365295]
[1768312114083,0.69195164,142.58,142.54,9.03310306]
[1768312114285,0.69195164,142.58,142.54,9.72899651]
[1768312114468,0.69195164,142.58,142.55,2.0177595]
[1768312114667,19.81324708,142.59,142.55,9.72049279]
[1768312115193,7.01324708,142.59,142.55,9.72049279]
[1768312115485,22.49573661,142.6,142.55,9.72049279]
[1768312116186,0.66529131,142.59,142.56,2.0177595]
[1768312116976,121.59328036,142.63,142.58,0.68781267]
[1768312117174,13.46529131,142.62,142.58,2.0177595]
[1768312117374,15.48305081,142.62,142.57,2.70557217]
[1768312117579,2.68305081,142.61,142.57,0.68781267]
[1768312117790,0.66529131,142.6,142.55,9.72045987]
[1768312117981,0.66529131,142.59,142.55,7.70270037]
[1768312118177,0.66529131,142.58,142.54,7.01545514]
[1768312118389,0.66529131,142.57,142.53,7.703737]
[1768312118692,15.48305081,142.59,142.54,0.68781267]
[1768312118988,0.66529131,142.58,142.54,0.68781267]
[1768312119583,0.66529131,142.58,142.54,7.70311242]
[1768312119796,0.66529131,142.59,142.54,9.72087192]
[1768312120180,2.65305082,142.59,142.54,7.70311242]
[1768312120590,0.63529132,142.59,142.55,0.68781267]
[1768312120798,14.8177595,142.6,142.55,0.68781267]
[1768312122193,20.47820799,142.6,142.55,0.68781267]
[1768312122401,2.0177595,142.59,142.55,0.68781267]
[1768312122876,1.98775951,142.59,142.55,0.68781267]
[1768312123072,2.65305082,142.59,142.55,7.70269928]
[1768312123277,2.68305081,142.57,142.53,7.70360145]
[1768312123493,2.65305082,142.57,142.53,7.70360145]
[1768312123696,0.60529133,142.57,142.53,0.68781267]
[1768312123996,2.0177595,142.56,142.53,0.68781267]
[1768312125498,2.0177595,142.58,142.54,0.68781267]
[1768312125692,14.8177595,142.59,142.54,0.68781267]
[1768312128086,0.66529131,142.64,142.6,0.68781267]
[1768312128778,0.66529131,142.64,142.6,7.69994883]
[1768312128986,2.68305081,142.66,142.61,0.68781267]
[1768312129802,0.66529131,142.66,142.62,0.68781267]
[1768312130382,2.68305081,142.66,142.62,0.68781267]
[1768312130789,2.68305081,142.66,142.63,7.01114772]
[1768312131494,0.66529131,142.66,142.63,7.01114772]
[1768312131690,12.8,142.68,142.63,7.01114772]
[1768312131691,22.49184315,142.68,142.63,7.01114772]
[1768312132011,0.66529131,142.67,142.63,7.01114772]
[1768312132304,2.68305081,142.67,142.63,7.01114772]
[1768312133204,0.66529131,142.67,142.63,7.01114772]
[1768312133383,2.68305081,142.67,142.63,7.01114772]
[1768312134094,9.69224413,142.67,142.63,7.01114772]
[1768312134290,9.69224413,142.67,142.62,7.69928452]
[1768312135307,13.06836694,142.67,142.62,7.69928452]
[1768312136690,5.39388231,142.66,142.62,7.69928452]
[1768312137505,5.39388231,142.66,142.63,0.68781267]
[1768312137699,13.06836694,142.67,142.63,0.68781267]
[1768312138318,6.05917362,142.67,142.63,0.68781267]
[1768312138491,0.66529131,142.69,142.64,0.68781267]
[1768312138693,0.66529131,142.69,142.65,7.00982328]
[1768312139004,0.66529131,142.68,142.64,7.69833709]
[1768312139205,0.66529131,142.67,142.63,7.01101485]
[1768312139591,103.4,142.71,142.65,0.68781267]
[1768312139793,0.1,142.72,142.68,6.08169498]
[1768312140088,0.1,142.72,142.68,0.68781267]
[1768312140293,5.49388231,142.72,142.68,0.68781267]
[1768312140504,12.50071352,142.72,142.68,0.68781267]
[1768312140706,5.39388231,142.71,142.66,0.68781267]
[1768312140906,5.39388231,142.71,142.66,7.69710198]
[1768312141098,5.39388231,142.71,142.67,7.00904335]
[1768312141504,5.39388231,142.71,142.66,7.00945694]
[1768312141800,7.10683121,142.72,142.65,23.60710682]
[1768312141801,6.05827875,142.69,142.65,7.00999451]
[1768312142012,6.05827875,142.69,142.65,7.69780718]
[1768312142215,5.39388231,142.71,142.67,0.68781267]
[1768312142426,5.49388231,142.72,142.68,7.69649652]
[1768312143014,6.0696867,142.72,142.68,7.69649652]
[1768312143221,13.0764411,142.72,142.68,7.69649652]
[1768312144012,0.1,142.72,142.68,13.09037883]
[1768312144324,0.1,142.72,142.69,0.68781267]
[1768312145023,0.1,142.72,142.69,7.69574855]
[1768312147589,1e-08,142.72,142.69,13.08963086]
[1768312147795,1e-08,142.72,142.7,0.66980249]
[1768312147995,1e-08,142.72,142.71,0.66980249]
[1768312148195,1e-08,142.72,142.71,6.0636848]
[1768312148922,0.1,142.76,142.73,7.00623554]
[1768312149129,0.1,142.76,142.74,0.66980249]
[1768312149899,0.1,142.76,142.73,7.00623554]
[1768312150107,0.1,142.76,142.73,0.66980249]
[1768312151310,0.1,142.76,142.73,7.67575165]
[1768312154926,0.1,142.76,142.73,0.66980249]
[1768312155314,7.10479254,142.76,142.73,0.66980249]
[1768312155825,0.1,142.76,142.73,7.67603043]
[1768312158615,0.80870025,142.76,142.71,20.20319904]
[1768312158816,0.80870025,142.76,142.72,0.67480388]
[1768312159343,0.1,142.76,142.72,0.67480388]
[1768312159509,0.1,142.76,142.73,0.67480388]
[1768312160830,0.1,142.76,142.73,7.68086618]
[1768312161438,0.1,142.76,142.73,9.69174903]
[1768312162407,0.1,142.76,142.73,7.68086618]
[1768312162634,0.63282954,142.76,142.73,7.0060623]
[1768312163032,0.1,142.76,142.73,7.68086618]
[1768312163751,0.1,142.76,142.73,0.67480388]
[1768312164047,9.1157547,142.76,142.73,0.67480388]
[1768312164433,7.10487185,142.76,142.73,0.67480388]
[1768312165252,0.1,142.76,142.73,7.68100497]
[1768312165431,7.81179464,142.76,142.73,0.67480388]
[1768312166138,7.1048531,142.76,142.73,0.67480388]
[1768312166333,0.1,142.76,142.74,0.67480388]
[1768312166747,0.63282954,142.78,142.74,0.67480388]
[1768312167142,7.63662325,142.78,142.74,0.67480388]
[1768312167343,9.6475061,142.78,142.74,0.67480388]
[1768312167549,2.64371239,142.78,142.74,0.67480388]
[1768312167850,2.54545351,142.76,142.73,7.00576781]
[1768312168050,0.53457066,142.76,142.73,7.00576781]
[1768312168238,2.7195831,142.77,142.74,7.00561208]
[1768312168444,0.70870025,142.77,142.74,7.00561208]
[1768312168631,0.63282954,142.78,142.74,7.68041596]
[1768312170041,0.63282954,142.78,142.75,0.67480388]
[1768312170042,0.1,142.78,142.75,0.67480388]
[1768312170243,0.80870025,142.8,142.76,0.67480388]
[1768312170649,0.80870025,142.8,142.76,3.81612265]
[1768312172147,0.80870025,142.8,142.77,7.0042726]
[1768312172355,3.95001902,142.8,142.77,7.0042726]
[1768312172542,0.80870025,142.8,142.77,7.0042726]
[1768312173152,0.80870025,142.8,142.76,7.67940587]
[1768312173153,3.95001902,142.8,142.76,7.67940587]
[1768312173357,0.80870025,142.8,142.76,7.67940587]
[1768312173654,3.95001902,142.8,142.76,7.67940587]
[1768312174060,0.53282954,142.79,142.76,7.67940587]
[1768312176157,0.1,142.8,142.77,3.79476457]
[1768312176852,0.67863953,142.8,142.76,7.00460199]
[1768312177042,3.8199583,142.8,142.76,7.00460199]
[1768312177551,3.24131877,142.8,142.77,0.6534458]
[1768312178137,3.24131877,142.8,142.77,7.6575853]
[1768312178538,0.1,142.8,142.77,7.6575853]
[1768312178765,3.24131877,142.8,142.77,7.6575853]
[1768312178981,0.1,142.8,142.77,0.6534458]
[1768312179260,3.24131877,142.8,142.77,0.6534458]
[1768312180260,0.1,142.8,142.77,0.6534458]
[1768312180459,10.24424387,142.8,142.77,0.6534458]
[1768312180663,7.1029251,142.8,142.77,0.6534458]